[Event "World Junior U20 Girls 2018"]
[Site "Gebze"]
[Date "2018.09.14"]
[Round "10"]
[White "Song, Yuxin"]
[Black "Yang, Yijing"]
[Result "1-0"]
[ECO "D85"]
[WhiteElo "2156"]
[BlackElo "2018"]
[Annotator "NA"]
[PlyCount "121"]
[EventDate "2018.09.05"]
[EventType "swiss"]
[EventCountry "TUR"]
[SourceTitle "playchess.com"]
[Source "ChessBase"]
[SourceQuality "1"]
[TimeControl "40/5400+30:1800+30"]

1. d4 {[%emt 0:00:30]} Nf6 {[%emt 0:00:30]} 2. Nf3 {[%emt 0:00:30]} g6 {[%emt 0:00:00]} 3. c4 {[%emt 0:08:30]} Bg7 {[%emt 0:00:00]} 4. Nc3 {[%emt 0:01:30]} d5 {[%emt 0:00:30]} 5. cxd5 {[%emt 0:01:30]} Nxd5 {[%emt 0:00:30]} 6. e4 {[%emt 0:00:30]} Nxc3 {[%emt 0:00:30]} 7. bxc3 {[%emt 0:00:00]} c5 {[%emt 0:00:00]} 8. Be3 {[%emt 0:00:00]} Qa5 {[%emt 0:03:00]} 9. Qd2 {[%emt 0:00:30]} Nc6 {[%emt 0:01:30]} 10. Rc1 {[%emt 0:01:30]} cxd4 {[%emt 0:00:30]} 11. cxd4 {[%emt 0:00:30]} Qxd2+ {[%emt 0:00:00]} 12. Kxd2 {[%emt 0:00:00]} O-O {[%emt 0:02:00] LiveBook: 303 Games} 13. Bd3 {[%emt 0:13:00] D85: Exchange Grünfeld: Unusual White 7th moves and lines with 7 Nf3} (13. Bb5 f5 14. exf5 Bxf5 15. Ke2 Rad8 16. Bxc6 bxc6 17. Rxc6 Be4 18. Re6 Bxf3+ 19. gxf3 Bf6 20. Rc1 Rd7 21. Rc4 Rb8 22. a4 Kf7 {1-0 (45) Korobov,A (2652)-Ivanchuk,V (2726) Huaian 2017}) 13... f5 {[%emt 0:10:30]} 14. d5 {[%emt 0:17:30]} fxe4 {[%emt 0:03:30]} 15. Bxe4 {[%emt 0:01:30]} Rd8 {[%emt 0:03:30]} 16. Ke2 {[%emt 0:02:30]} Nb4 {[%emt 0:03:30]} 17. Rc7 {[%emt 0:01:30]} Nxd5 $146 {[%emt 0:03:30]} ({Predecessor:} 17... Bf5 18. Bxf5 gxf5 19. Rxb7 Nxd5 {1-0 (35) Dziuba,M (2392)-Murawski,G (2311) Zakopane 2000}) 18. Bxd5+ {[%emt 0:01:30]} Rxd5 {[%emt 0:00:30]} 19. Rd1 {[%emt 0:08:30]} Rxd1 {[%emt 0:06:30]} 20. Kxd1 {[%emt 0:00:00]} b6 {[%emt 0:01:30]} 21. Rxe7 {[%emt 0:00:00]} Ba6 {[%emt 0:03:30]} 22. Ne5 {[%emt 0:04:30]} Kf8 {[%emt 0:07:30]} 23. Nc6 {[%emt 0:01:30]} Bb5 {[%emt 0:09:30]} 24. Rc7 {[%emt 0:00:30]} Bxc6 {[%emt 0:00:30]} 25. Rxc6 {[%emt 0:00:30]} Rd8+ {[%emt 0:00:00]} 26. Ke2 {[%emt 0:00:30]} Rd7 {[%emt 0:01:00]} 27. g4 {[%emt 0:01:30]} Bd4 {[%emt 0:07:30]} 28. Bh6+ {[%emt 0:00:30]} Kf7 {[%emt 0:01:30]} 29. h4 {[%emt 0:07:30]} Re7+ {[%emt 0:02:30]} 30. Kf3 {[%emt 0:05:30]} b5 {[%emt 0:01:30]} 31. Bg5 {[%emt 0:01:30]} Rd7 {[%emt 0:02:30]} 32. Ra6 {[%emt 0:00:47]} Bb6 {[%emt 0:00:30]} 33. Be3 $14 {[%emt 0:00:17]} Rb7 {[%emt 0:08:03]} 34. Ke4 {[%emt 0:04:35]} Ke6 {[%emt 0:03:39]} 35. Bc5 {[%emt 0:01:01]} Rb8 {[%emt 0:04:05]} 36. f3 {[%emt 0:02:46]} h5 {[%emt 0:03:29]} 37. g5 {[%emt 0:00:13]} Rb7 {[%emt 0:01:24]} 38. f4 {[%emt 0:01:15]} Kf7 {[%emt 0:03:22]} 39. Bxb6 {[%emt 0:00:30]} axb6 {[%emt 0:00:00]} 40. Kd5 {[%emt 0:00:00]} Rd7+ {[%emt 0:00:00]} 41. Kc6 {[%emt 0:07:36]} Rd4 {[%emt 0:00:28]} 42. Kxb5 {[%emt 0:00:30]} Rxf4 {[%emt 0:00:00]} 43. Ra4 {[%emt 0:00:30]} Rg4 {[%emt 0:00:00]} 44. Rc4 {[%emt 0:01:30]} Ke7 {[%emt 0:03:30]} 45. Rc7+ {[%emt 0:03:30]} Kf8 {[%emt 0:00:30]} 46. Rc6 {[%emt 0:05:30]} Kf7 {[%emt 0:00:30]} 47. Rf6+ {[%emt 0:01:30]} Kg7 {[%emt 0:00:30]} 48. Rxb6 {[%emt 0:00:30]} Rxh4 {[%emt 0:00:30]} 49. Rb7+ {[%emt 0:00:30]} Kf8 {[%emt 0:00:30]} 50. a4 {[%emt 0:00:30]} Rg4 {[%emt 0:00:30]} 51. a5 {[%emt 0:00:30]} Rxg5+ {[%emt 0:00:30]} 52. Kb6 {[%emt 0:00:00]} Rg1 {[%emt 0:13:30]} 53. a6 {[%emt 0:00:00]} Ra1 {[%emt 0:00:00]} 54. a7 {[%emt 0:00:00]} h4 {[%emt 0:00:00]} 55. Kc5 {[%emt 0:02:00]} h3 {[%emt 0:02:41]} 56. Rb8+ {[%emt 0:00:30]} Kg7 {[%emt 0:00:30]} 57. a8=Q {[%emt 0:00:30]} Rxa8 {[%emt 0:00:19]} 58. Rxa8 {[%emt 0:00:00]} Kf6 {[%emt 0:00:30]} 59. Kd4 {[%emt 0:00:00]} Kf5 {[%emt 0:00:30]} 60. Ke3 {[%emt 0:00:30]} h2 {[%emt 0:00:59]} 61. Rh8 {[%emt 0:00:00]} 1-0

[Event "World Junior U20 Girls 2018"]
[Site "Gebze"]
[Date "2018.09.14"]
[Round "10"]
[White "Du, Yuxin"]
[Black "Caxita, Esperanca"]
[Result "1-0"]
[ECO "B01"]
[WhiteElo "2146"]
[BlackElo "1803"]
[Annotator "NA"]
[PlyCount "119"]
[EventDate "2018.09.05"]
[EventType "swiss"]
[EventCountry "TUR"]
[SourceTitle "playchess.com"]
[Source "ChessBase"]
[SourceQuality "1"]
[TimeControl "40/5400+30:1800+30"]

1. e4 {[%emt 0:01:30]} d5 {[%emt 0:00:30]} 2. exd5 {[%emt 0:01:30]} Qxd5 {[%emt 0:00:00]} 3. Nc3 {[%emt 0:00:30]} Qd6 {[%emt 0:00:00]} 4. d4 {[%emt 0:00:00]} Nf6 {[%emt 0:00:30]} 5. Nf3 {[%emt 0:01:00]} a6 {[%emt 0:00:30]} 6. Bd3 {[%emt 0:03:30]} Nc6 {[%emt 0:01:30]} 7. h3 {[%emt 0:15:30]} Bd7 {[%emt 0:03:30]} 8. Be3 {[%emt 0:16:30]} O-O-O {[%emt 0:00:30]} 9. O-O {[%emt 0:01:30]} h6 {[%emt 0:01:30]} 10. Qe2 {[%emt 0:17:30]} Nb4 {[%emt 0:10:30]} 11. Bc4 {[%emt 0:01:30]} e6 {[%emt 0:00:30]} 12. Ne5 {[%emt 0:02:30]} Be8 {[%emt 0:03:30]} 13. a3 {[%emt 0:04:30]} Nbd5 {[%emt 0:00:30]} 14. Nxd5 {[%emt 0:02:30]} Nxd5 {[%emt 0:00:30]} 15. Bd3 {[%emt 0:05:30]} Nxe3 {[%emt 0:05:30]} 16. fxe3 {[%emt 0:00:00]} f6 {[%emt 0:00:30]} 17. Nc4 $11 {[%emt 0:03:20]} Qd5 {[%emt 0:02:30]} 18. c3 {[%emt 0:00:24]} Bc6 {[%emt 0:02:30]} 19. e4 {[%emt 0:01:11]} Qd7 {[%emt 0:01:30]} 20. b4 {[%emt 0:03:28]} Bb5 {[%emt 0:02:30]} 21. Nb2 {[%emt 0:03:14]} Bxd3 {[%emt 0:03:30]} 22. Qxd3 {[%emt 0:01:41]} c6 {[%emt 0:04:30]} 23. Nc4 {[%emt 0:03:16]} Qc7 {[%emt 0:00:30]} 24. a4 {[%emt 0:03:21]} e5 {[%emt 0:13:30]} 25. d5 {[%emt 0:01:11]} cxd5 {[%emt 0:01:30]} 26. exd5 {[%emt 0:00:06]} Bd6 {[%emt 0:01:30]} 27. a5 {[%emt 0:01:22]} Rhe8 {[%emt 0:00:30]} 28. Nd2 {[%emt 0:03:46]} Kb8 {[%emt 0:01:30]} 29. Rfb1 {[%emt 0:00:40]} Rc8 {[%emt 0:01:30]} 30. Rc1 {[%emt 0:00:53]} Red8 {[%emt 0:01:30]} 31. Kh1 {[%emt 0:00:36]} Bf8 {[%emt 0:05:30]} 32. Rab1 {[%emt 0:00:34]} Qd7 {[%emt 0:08:30]} 33. c4 {[%emt 0:00:36]} Qa4 {[%emt 0:04:08]} 34. c5 {[%emt 0:00:34]} Qb5 {[%emt 0:01:48]} 35. Nc4 {[%emt 0:00:48]} Re8 {[%emt 0:06:15]} 36. Qe4 {[%emt 0:00:31]} Rcd8 {[%emt 0:00:46]} 37. Ne3 {[%emt 0:00:43]} Qe2 {[%emt 0:01:21]} 38. Rc2 {[%emt 0:00:31]} Qb5 {[%emt 0:03:38]} 39. d6 {[%emt 0:00:27]} Qc6 {[%emt 0:00:47]} 40. Rc4 {[%emt 0:00:00]} Qxe4 {[%emt 0:02:27]} 41. Rxe4 {[%emt 0:00:47]} Re6 {[%emt 0:02:20]} 42. Rf1 {[%emt 0:03:30]} Kc8 {[%emt 0:01:30]} 43. Nd5 {[%emt 0:00:30]} Rd7 {[%emt 0:04:30]} 44. Nb6+ {[%emt 0:03:30]} Kd8 {[%emt 0:00:30]} 45. Nxd7 {[%emt 0:00:00]} Kxd7 {[%emt 0:00:30]} 46. g4 {[%emt 0:10:54]} g6 {[%emt 0:01:30]} 47. Kg2 {[%emt 0:04:23]} Bg7 {[%emt 0:00:30]} 48. Re2 {[%emt 0:01:22]} Re8 {[%emt 0:00:30]} 49. Kf3 {[%emt 0:01:08]} Rf8 {[%emt 0:01:30]} 50. Ke3 {[%emt 0:01:55]} Kc6 {[%emt 0:01:30]} 51. Ke4 {[%emt 0:00:11]} Rf7 {[%emt 0:01:30]} 52. Rd2 {[%emt 0:01:53]} Rd7 {[%emt 0:00:30]} 53. h4 {[%emt 0:01:28]} Bh8 {[%emt 0:04:30]} 54. Rdf2 {[%emt 0:02:30]} Rf7 {[%emt 0:01:54]} 55. h5 {[%emt 0:01:02]} gxh5 {[%emt 0:02:33]} 56. gxh5 {[%emt 0:00:10]} Bg7 {[%emt 0:00:20]} 57. Rg2 {[%emt 0:00:57]} Rd7 {[%emt 0:01:26]} 58. Kf5 {[%emt 0:02:55]} Kd5 {[%emt 0:01:13]} 59. Rd1+ {[%emt 0:00:19]} Kc6 {[%emt 0:00:09]} 60. Ke4 {[%emt 0:00:27]} 1-0

[Event "World Junior U20 Girls 2018"]
[Site "Gebze"]
[Date "2018.09.14"]
[Round "10"]
[White "Wafa, Shahenda"]
[Black "Altantuya, Boldbaatar"]
[Result "1/2-1/2"]
[ECO "B95"]
[WhiteElo "2129"]
[BlackElo "2210"]
[Annotator "NA"]
[PlyCount "80"]
[EventDate "2018.09.05"]
[EventType "swiss"]
[EventCountry "TUR"]
[SourceTitle "playchess.com"]
[Source "ChessBase"]
[SourceQuality "1"]
[TimeControl "40/5400+30:1800+30"]

1. e4 {[%emt 0:00:30]} c5 {[%emt 0:00:00]} 2. Nf3 {[%emt 0:00:00]} e6 {[%emt 0:00:00]} 3. d4 {[%emt 0:00:00]} cxd4 {[%emt 0:01:30]} 4. Nxd4 {[%emt 0:00:30]} Nf6 {[%emt 0:00:00]} 5. Nc3 {[%emt 0:01:30]} d6 {[%emt 0:00:00]} 6. Bg5 {[%emt 0:02:30]} h6 {[%emt 0:00:30]} 7. Bh4 {[%emt 0:02:30] LiveBook: 14 Games} Be7 {[%emt 0:00:30]} 8. Bg3 {[%emt 0:03:30]} a6 {[%emt 0:03:30]} 9. Be2 {[%emt 0:07:30]} Qc7 {[%emt 0:03:30] B95: Sicilian Najdorf: 6 Bg5 e6, unusual White 7th moves} 10. O-O {[%emt 0:03:30]} O-O {[%emt 0:01:30]} 11. Kh1 {[%emt 0:08:30]} b5 $146 {[%emt 0:08:30]} ({Predecessor:} 11... Nc6 12. Qd2 Ne5 13. f4 Nc4 14. Bxc4 Qxc4 15. Qd3 {0-1 (32) Suarez Fleitas,A (1423)-Cruz Pino,A (2007) Gran Canaria 2012}) 12. a3 {[%emt 0:00:30]} Bb7 {[%emt 0:00:30]} 13. Bd3 {[%emt 0:01:30]} Nc6 {[%emt 0:02:30]} 14. Nxc6 {[%emt 0:01:30]} Bxc6 {[%emt 0:00:30]} 15. Qe2 {[%emt 0:05:30]} Qb7 {[%emt 0:12:30]} 16. f4 {[%emt 0:06:30]} d5 {[%emt 0:00:30]} 17. Rae1 {[%emt 0:06:30]} dxe4 {[%emt 0:20:30]} 18. Nxe4 {[%emt 0:00:30]} Nxe4 {[%emt 0:00:30]} 19. Bxe4 {[%emt 0:00:30]} Bxe4 {[%emt 0:00:00]} 20. Qxe4 {[%emt 0:00:00]} Qxe4 {[%emt 0:00:00]} 21. Rxe4 {[%emt 0:00:00]} Bf6 {[%emt 0:00:30]} 22. c3 {[%emt 0:02:30]} Rfd8 {[%emt 0:00:30]} 23. Re2 {[%emt 0:03:30]} Rd3 {[%emt 0:02:30]} 24. Kg1 {[%emt 0:03:30]} a5 {[%emt 0:00:30]} 25. f5 {[%emt 0:01:30]} exf5 {[%emt 0:04:30]} 26. Rxf5 {[%emt 0:01:30]} b4 {[%emt 0:00:30]} 27. axb4 {[%emt 0:09:30]} axb4 {[%emt 0:00:30]} 28. cxb4 {[%emt 0:00:00]} Bd4+ {[%emt 0:10:30]} 29. Kf1 {[%emt 0:00:00]} Rb3 {[%emt 0:00:30]} 30. Bf2 $11 {[%emt 0:12:32]} Ra1+ {[%emt 0:14:37]} 31. Re1 {[%emt 0:01:04]} Rxe1+ {[%emt 0:05:26]} 32. Kxe1 {[%emt 0:03:44]} Bxb2 {[%emt 0:01:17]} 33. b5 {[%emt 0:00:15]} f6 {[%emt 0:01:08]} 34. Rd5 {[%emt 0:03:26]} Bc3+ {[%emt 0:00:59]} 35. Ke2 {[%emt 0:00:25]} Rb2+ {[%emt 0:01:22]} 36. Kf3 {[%emt 0:00:54]} Kf7 {[%emt 0:00:39]} 37. Rd7+ {[%emt 0:01:24]} Ke6 {[%emt 0:00:23]} 38. Rxg7 {[%emt 0:00:00]} Rxb5 {[%emt 0:00:24]} 39. Be3 {[%emt 0:03:23]} Rb3 {[%emt 0:01:15]} 40. Ke2 {[%emt 0:00:00]} Be5 {[%emt 0:00:00]} 1/2-1/2

[Event "World Junior U20 Girls 2018"]
[Site "Gebze"]
[Date "2018.09.14"]
[Round "10"]
[White "Serikbay, Assel"]
[Black "Antova, Gabriela"]
[Result "0-1"]
[ECO "D11"]
[WhiteElo "2125"]
[BlackElo "2292"]
[Annotator "NA"]
[PlyCount "94"]
[EventDate "2018.09.05"]
[EventType "swiss"]
[EventCountry "TUR"]
[SourceTitle "playchess.com"]
[Source "ChessBase"]
[SourceQuality "1"]
[TimeControl "40/5400+30:1800+30"]

1. d4 {[%emt 0:00:30]} d5 {[%emt 0:00:30]} 2. Nf3 {[%emt 0:00:30]} Nf6 {[%emt 0:00:30]} 3. c4 {[%emt 0:00:00]} c6 {[%emt 0:00:00]} 4. g3 {[%emt 0:00:00]} dxc4 {[%emt 0:02:00]} 5. Bg2 {[%emt 0:00:00]} g6 {[%emt 0:00:00] D11: Slav Defence: 3 Nf3 sidelines and 3...Nf6 4 e3 Bg4} 6. O-O {[%emt 0:01:00]} Bg7 {[%emt 0:00:00]} 7. a4 {[%emt 0:02:30]} Ne4 {[%emt 0:01:30]} (7... Na6 8. Na3 Be6 9. Ng5 Qd7 10. Nxe6 Qxe6 11. e3 Ne4 12. Qc2 Nd6 13. Bd2 O-O 14. Rac1 {1-0 (43) Dubov,D (2701)-Volokitin,A (2639) Batumi 2018}) 8. Qc2 {[%emt 0:04:30]} Nd6 {[%emt 0:00:30]} 9. e4 {[%emt 0:02:30]} Na6 {[%emt 0:11:30] LiveBook: 9 Games} 10. e5 {[%emt 0:13:30]} Nf5 {[%emt 0:00:30]} 11. Qxc4 {[%emt 0:01:30]} Be6 {[%emt 0:01:30]} 12. Qc3 {[%emt 0:01:30]} O-O {[%emt 0:07:30]} 13. g4 $146 {[%emt 0:16:30]} ({Predecessor:} 13. b4 Nc7 14. Nbd2 {½-½ (35) Jonasson,J (2337)-Nierobisz,J (2362) ICCF email 2008}) 13... Nh6 {[%emt 0:01:30]} 14. h3 {[%emt 0:00:00]} f6 {[%emt 0:02:30]} 15. exf6 {[%emt 0:12:00]} exf6 {[%emt 0:00:30]} 16. Bf4 {[%emt 0:00:30]} Nf7 {[%emt 0:01:30]} 17. Qd2 {[%emt 0:08:30]} Nc7 {[%emt 0:08:30]} 18. Nc3 {[%emt 0:00:30]} Nd5 {[%emt 0:00:30]} 19. Nxd5 {[%emt 0:05:30]} Bxd5 {[%emt 0:00:30]} 20. Rfe1 {[%emt 0:04:30]} Qd7 {[%emt 0:07:30]} 21. Re3 {[%emt 0:04:30]} Rad8 {[%emt 0:05:30]} 22. Rd1 {[%emt 0:02:15]} Rfe8 {[%emt 0:06:30]} 23. Rde1 {[%emt 0:06:18]} Rxe3 {[%emt 0:09:30]} 24. fxe3 {[%emt 0:00:50]} Be4 {[%emt 0:03:30]} 25. Nh2 {[%emt 0:03:41]} Bxg2 {[%emt 0:02:30]} 26. Qxg2 {[%emt 0:00:06]} f5 {[%emt 0:00:30]} 27. Nf3 {[%emt 0:05:10]} c5 {[%emt 0:01:30]} 28. dxc5 {[%emt 0:00:50]} fxg4 {[%emt 0:00:30]} 29. hxg4 {[%emt 0:02:56]} Qxa4 {[%emt 0:00:30]} 30. e4 {[%emt 0:01:16]} Qb4 {[%emt 0:01:30]} 31. Qf2 {[%emt 0:00:55]} Bxb2 {[%emt 0:09:34]} 32. Bd2 {[%emt 0:00:36]} Rxd2 {[%emt 0:02:54]} 33. Qxd2 {[%emt 0:00:30]} Bc3 {[%emt 0:00:00]} 34. Qe3 {[%emt 0:00:13]} Bxe1 {[%emt 0:00:18]} 35. Nxe1 {[%emt 0:00:02]} Ne5 {[%emt 0:00:22]} 36. Kg2 {[%emt 0:00:59]} Nxg4 {[%emt 0:04:05]} 37. Qf4 {[%emt 0:00:26]} Qxe1 {[%emt 0:01:55]} 38. Qxg4 {[%emt 0:00:30]} Qd2+ {[%emt 0:00:00]} 39. Kf1 {[%emt 0:00:23]} Qc1+ {[%emt 0:03:07]} 40. Ke2 {[%emt 0:00:00]} Qc4+ {[%emt 0:00:00]} 41. Ke1 {[%emt 0:04:04]} Qxc5 {[%emt 0:09:15]} 42. Qe6+ {[%emt 0:00:30]} Kg7 {[%emt 0:00:30]} 43. e5 $19 {[%emt 0:01:30]} Qe3+ {[%emt 0:00:30]} 44. Kd1 {[%emt 0:02:30]} Qf3+ {[%emt 0:00:00]} 45. Ke1 {[%emt 0:00:30]} Qe4+ {[%emt 0:03:00]} 46. Kd2 {[%emt 0:01:30]} Qd4+ {[%emt 0:00:00]} 47. Ke2 {[%emt 0:01:30]} Qd8 {[%emt 0:00:00]} 0-1

[Event "World Junior U20 Girls 2018"]
[Site "Gebze"]
[Date "2018.09.14"]
[Round "10"]
[White "Ozbay, Ece"]
[Black "Chitlange Sakshi"]
[Result "0-1"]
[ECO "B01"]
[WhiteElo "2114"]
[BlackElo "2279"]
[Annotator "NA"]
[PlyCount "80"]
[EventDate "2018.09.05"]
[EventType "swiss"]
[EventCountry "TUR"]
[SourceTitle "playchess.com"]
[Source "ChessBase"]
[SourceQuality "1"]
[TimeControl "40/5400+30:1800+30"]

1. e4 {[%emt 0:00:30]} d5 {[%emt 0:00:30]} 2. exd5 {[%emt 0:00:30]} Qxd5 {[%emt 0:00:30]} 3. Nc3 {[%emt 0:00:30]} Qd6 {[%emt 0:00:00]} 4. d4 {[%emt 0:00:00]} Nf6 {[%emt 0:00:00]} 5. Nf3 {[%emt 0:00:00] LiveBook: 2762 Games} c6 {[%emt 0:00:30]} 6. g3 {[%emt 0:00:00] B01: Scandinavian Defence} Bf5 {[%emt 0:00:30]} 7. Bf4 {[%emt 0:01:00]} Qd8 {[%emt 0:00:30]} 8. Bc4 $146 {[%emt 0:09:30]} ({Predecessor:} 8. Bg2 e6 9. O-O Be7 10. Ne5 h6 11. Qe2 O-O 12. Rad1 Nbd7 13. Rfe1 Nb6 {1-0 (24) Brkic,A (2598)-Tratar,M (2456) Sarajevo 2018}) 8... e6 {[%emt 0:02:30]} 9. Nh4 {[%emt 0:01:30]} Bg4 {[%emt 0:06:30]} 10. f3 {[%emt 0:02:30]} Bh5 {[%emt 0:00:30]} 11. Qd3 {[%emt 0:01:30]} Nbd7 {[%emt 0:04:30]} 12. O-O-O {[%emt 0:02:30]} Be7 {[%emt 0:02:30]} 13. g4 {[%emt 0:04:30]} Nd5 {[%emt 0:05:30]} 14. Bxd5 $1 {[%emt 0:04:30]} cxd5 {[%emt 0:00:30]} 15. Nf5 {[%emt 0:22:30]} Bg6 {[%emt 0:02:30]} 16. Nxg7+ {[%emt 0:00:30]} Kf8 {[%emt 0:00:30]} 17. Nf5 {[%emt 0:00:00]} h5 {[%emt 0:15:30]} 18. Qe3 {[%emt 0:21:00]} exf5 {[%emt 0:02:30]} 19. Nxd5 {[%emt 0:03:30]} Bh4 {[%emt 0:14:30]} 20. gxf5 {[%emt 0:07:50]} Bxf5 {[%emt 0:00:00]} 21. Rhg1 {[%emt 0:00:00]} Bg6 $18 {[%emt 0:05:00]} 22. Nc7 {[%emt 0:00:13]} Qc8 {[%emt 0:02:30]} 23. Rxg6 {[%emt 0:06:10]} fxg6 {[%emt 0:00:00]} 24. Rg1 {[%emt 0:00:41]} Bf6 {[%emt 0:19:44]} 25. Rxg6 {[%emt 0:08:33]} Kf7 {[%emt 0:00:03]} 26. Rg1 {[%emt 0:00:24]} Nf8 {[%emt 0:00:09]} 27. Nb5 {[%emt 0:01:28]} Be7 {[%emt 0:03:44]} 28. Bd6 {[%emt 0:01:19]} Qe6 {[%emt 0:00:54]} 29. Qxe6+ {[%emt 0:00:37]} Nxe6 {[%emt 0:01:20]} 30. Bxe7 {[%emt 0:00:57]} Kxe7 {[%emt 0:00:30]} 31. d5 {[%emt 0:00:00]} a6 {[%emt 0:03:56]} 32. Re1 {[%emt 0:01:10]} axb5 {[%emt 0:00:30]} 33. Rxe6+ {[%emt 0:00:30]} Kd7 {[%emt 0:00:00]} 34. Rb6 {[%emt 0:00:00]} Kc7 {[%emt 0:00:52]} 35. Rxb5 {[%emt 0:00:00]} Rxa2 {[%emt 0:00:00]} 36. c4 {[%emt 0:00:51]} Ra1+ {[%emt 0:02:07]} 37. Kc2 {[%emt 0:00:30]} Rh1 {[%emt 0:00:00]} 38. Rb3 {[%emt 0:00:27]} Rxh2+ {[%emt 0:00:00]} 39. Kd3 {[%emt 0:00:38]} h4 {[%emt 0:00:31]} 40. Ke3 {[%emt 0:00:00]} Rg2 {[%emt 0:00:00]} 0-1

[Event "World Junior U20 Girls 2018"]
[Site "Gebze"]
[Date "2018.09.14"]
[Round "10"]
[White "Nurgali, Nazerke"]
[Black "Maltsevskaya, Aleksandra"]
[Result "1/2-1/2"]
[ECO "A58"]
[WhiteElo "2080"]
[BlackElo "2234"]
[Annotator "NA"]
[PlyCount "57"]
[EventDate "2018.09.05"]
[EventType "swiss"]
[EventCountry "TUR"]
[SourceTitle "playchess.com"]
[Source "ChessBase"]
[SourceQuality "1"]
[TimeControl "40/5400+30:1800+30"]

1. d4 {[%emt 0:00:30]} Nf6 {[%emt 0:00:30]} 2. c4 {[%emt 0:00:00]} c5 {[%emt 0:00:30]} 3. d5 {[%emt 0:00:00]} b5 {[%emt 0:00:30]} 4. cxb5 {[%emt 0:01:30]} a6 {[%emt 0:00:30]} 5. bxa6 {[%emt 0:00:00]} e6 {[%emt 0:00:30]} 6. Nc3 {[%emt 0:01:00] A58: Wolga/Benkö-Gambit} exd5 {[%emt 0:01:30]} 7. Nxd5 {[%emt 0:01:30]} Be7 {[%emt 0:01:30]} 8. Nf3 {[%emt 0:02:30]} (8. e3 O-O 9. Ne2 Nxd5 10. Qxd5 Rxa6 11. Nc3 Rd6 12. Qf3 Nc6 13. Be2 Bb7 {½-½ (27) Nakamura,H (2787)-Dubov,D (2701) Moscow 2018}) 8... O-O {[%emt 0:00:00]} 9. e3 {[%emt 0:13:30]} Rxa6 $146 {[%emt 0:00:00]} ({Vorgänger:} 9... Nxd5 10. Qxd5 Nc6 11. Qd1 Bxa6 12. Bxa6 Qa5+ 13. Bd2 Qxa6 {0-1 (37) Gerwert,T-Kempter,J Moscow 1990}) 10. Nxe7+ {[%emt 0:04:30]} (10. Bxa6 $16 Bxa6 11. Nxf6+ (11. Nxe7+ Qxe7 12. b3 Nc6 $11) 11... Bxf6 12. Qb3) 10... Qxe7 {[%emt 0:00:30]} 11. Be2 {[%emt 0:07:30]} Ne4 {[%emt 0:01:30]} 12. Qb3 {[%emt 0:03:30]} Nc6 {[%emt 0:08:30]} 13. O-O {[%emt 0:01:30]} Ra8 {[%emt 0:20:30]} 14. a3 {[%emt 0:05:30]} d6 {[%emt 0:12:30]} 15. Bd2 {[%emt 0:08:30]} Be6 {[%emt 0:02:30]} 16. Qc2 {[%emt 0:01:30]} Bf5 {[%emt 0:00:30]} 17. Qc1 {[%emt 0:04:30]} Rfc8 {[%emt 0:03:30]} 18. Bc4 {[%emt 0:05:30]} Rab8 {[%emt 0:06:30]} 19. Bc3 {[%emt 0:01:30]} Be6 {[%emt 0:08:30]} 20. Bxe6 {[%emt 0:05:30]} Qxe6 {[%emt 0:00:30]} 21. Qc2 {[%emt 0:05:30]} d5 {[%emt 0:00:30]} 22. Rfd1 {[%emt 0:00:30]} h6 {[%emt 0:05:30]} 23. Rac1 {[%emt 0:03:30]} Rb7 {[%emt 0:04:30]} 24. Qd3 {[%emt 0:03:05]} Rd8 {[%emt 0:00:00]} 25. h3 {[%emt 0:03:41]} Rb3 $14 {[%emt 0:05:23]} 26. Qc2 {[%emt 0:03:57]} Rb7 {[%emt 0:03:30]} 27. Qd3 {[%emt 0:01:52]} Rb3 {[%emt 0:00:45]} 28. Qc2 {[%emt 0:00:30]} Rb7 {[%emt 0:00:00]} 29. Qd3 {[%emt 0:07:04]} 1/2-1/2

[Event "World Junior U20 Girls 2018"]
[Site "Gebze"]
[Date "2018.09.14"]
[Round "10"]
[White "Lingur, Zalina"]
[Black "Caglar, Sila"]
[Result "0-1"]
[ECO "B06"]
[WhiteElo "2061"]
[BlackElo "2208"]
[Annotator "NA"]
[PlyCount "72"]
[EventDate "2018.09.05"]
[EventType "swiss"]
[EventCountry "TUR"]
[SourceTitle "playchess.com"]
[Source "ChessBase"]
[SourceQuality "1"]
[TimeControl "40/5400+30:1800+30"]

1. e4 {[%emt 0:00:30]} g6 {[%emt 0:00:30]} 2. d4 {[%emt 0:00:00]} Bg7 {[%emt 0:00:30]} 3. Nc3 {[%emt 0:00:00]} d6 {[%emt 0:00:00]} 4. f4 {[%emt 0:01:30]} a6 {[%emt 0:01:00]} 5. Nf3 {[%emt 0:00:30]} b5 {[%emt 0:00:30]} 6. Bd3 {[%emt 0:00:30] B06: Modern Defence} c5 {[%emt 0:01:30]} (6... Nd7 7. a4 b4 8. Ne2 c5 9. c3 Bb7 10. O-O Ngf6 11. e5 Nd5 12. Bd2 bxc3 13. bxc3 cxd4 14. cxd4 O-O {0-1 (49) Anand,V (2759)-Nakamura,H (2769) Leuven 2018}) 7. dxc5 {[%emt 0:10:30]} dxc5 {[%emt 0:00:00] [#]} 8. O-O {[%emt 0:01:30]} (8. e5 $1 $16) 8... Nd7 {[%emt 0:23:00]} 9. e5 {[%emt 0:06:30]} Nh6 $146 {[%emt 0:05:30]} ({Predecessor:} 9... Bb7 10. Qe2 Qb6 11. Be4 Rd8 12. Rd1 Nh6 13. a4 b4 14. Nd5 Bxd5 15. Rxd5 O-O 16. a5 Qa7 {0-1 (16) Amartsev,P (1776)-Neumann,U (1548) LSS email 2010}) 10. Be4 {[%emt 0:03:30]} Rb8 {[%emt 0:01:30]} 11. e6 {[%emt 0:03:30]} fxe6 {[%emt 0:03:30]} 12. Ng5 {[%emt 0:08:30]} Rb6 {[%emt 0:13:30]} 13. Nxh7 {[%emt 0:03:30]} Nf5 {[%emt 0:10:30]} 14. Qg4 {[%emt 0:10:30]} Bd4+ {[%emt 0:06:30]} 15. Kh1 {[%emt 0:00:30]} Rxh7 {[%emt 0:01:30]} 16. Qxg6+ {[%emt 0:04:30]} Rf7 {[%emt 0:00:30]} 17. Bf3 {[%emt 0:11:30]} Nf8 {[%emt 0:01:30]} 18. Qh5 {[%emt 0:02:30]} Ng7 $19 {[%emt 0:08:36]} 19. Qh4 {[%emt 0:01:30]} Kd7 {[%emt 0:02:47]} 20. Ne4 {[%emt 0:01:30]} Nf5 {[%emt 0:01:23]} 21. Qe1 {[%emt 0:01:30]} Bb7 {[%emt 0:01:35]} 22. Ng5 {[%emt 0:13:47]} Rg7 {[%emt 0:02:37]} 23. Bd2 {[%emt 0:05:52]} Bxf3 {[%emt 0:05:32]} 24. Rxf3 {[%emt 0:00:18]} Rd6 {[%emt 0:01:19]} 25. Ne4 {[%emt 0:02:23]} Rd5 {[%emt 0:01:10]} 26. c3 {[%emt 0:00:09]} Bf6 {[%emt 0:00:06]} 27. a4 {[%emt 0:00:09]} Qb6 {[%emt 0:01:06]} 28. axb5 {[%emt 0:02:31]} axb5 {[%emt 0:00:44]} 29. c4 {[%emt 0:01:56]} bxc4 {[%emt 0:02:04]} 30. Rfa3 {[%emt 0:01:40]} Ke8 {[%emt 0:02:12]} 31. Ra6 {[%emt 0:00:36]} Qxb2 {[%emt 0:00:53]} 32. Rb1 {[%emt 0:00:44]} Qd4 {[%emt 0:00:57]} 33. Bc3 {[%emt 0:01:09]} Ng3+ {[%emt 0:00:58]} 34. Qxg3 {[%emt 0:01:01]} Qxe4 {[%emt 0:00:15]} 35. Ra8+ {[%emt 0:00:05]} Kf7 {[%emt 0:00:12]} 36. Rxf8+ {[%emt 0:00:53]} Kxf8 {[%emt 0:00:08]} 0-1